Workbook

Sheet от 1 года до 3х лет
A1: Утверждаю | H1: Согласовано
A2: Директор ООО "ФУДСОЦСЕРВИС" | H2: Руководитель дошкольной образовательной
A3: Харламова Э.Р. | H3: организации
E4: Примерное 10-дневное меню
E5: для организации питания детей в дошкольных учреждениях
E6: с 8-10,5 - часовым пребыванием от 1 года до 3 лет
A7: День 1 - ый
A8: Наименование блюд и продуктов | B8: Ингридиенты | C8: Масса порции | D8: Кол - во (в г ) | E8: Кол - во (в г ) | F8: Пищевые вещества | I8: Энергетическая ценность | J8: Витамин | K8: Сборник рецептур
D9: брутто | E9: нетто | F9: белки | G9: жиры | H9: угл-ды | I9: Ккал | J9: С
B10: ЗАВТРАК
A11: Каша геркулесовая молочная с маслом сливочным | C11: 140/3 | F11: 5.79 | G11: 6.28 | H11: 26.29 | I11: 185.66 | J11: 0.67 | K11: ТТК №5Д
B12: крупа геркулесовая | D12: 18.00 | E12: 18.00
B13: молоко | D13: 123.00 | E13: 123.00
B14: сахар | D14: 2.00 | E14: 2.00
B15: соль йодированная | D15: 0.40 | E15: 0.40
B16: масло сливочное | D16: 3.00 | E16: 3.00
A17: Кофейный напиток с молоком | C17: 180/6 | F17: 2.85 | G17: 2.41 | H17: 10.35 | I17: 74.58 | J17: 1.17 | K17: №414 Дели 2016
B18: кофейный напиток | D18: 2.50 | E18: 2.50
B19: сахар | D19: 6.00 | E19: 6.00
B20: молоко | D20: 90.00 | E20: 90.00
B21: вода | D21: 108.00 | E21: 108.00
A22: Бутерброд с сыром, маслом сливочным | C22: 25/5/5 | F22: 2.53 | G22: 5.69 | H22: 12.92 | I22: 115.67 | J22: 0.07 | K22: №3 сб дошк 2016
B23: батон нарезной | D23: 25.00 | E23: 25.00
B24: сыр | D24: 5.10 | E24: 5.00
B25: масло сливочное | D25: 5.00 | E25: 5.00
A26: Итого: | C26: =143+186+35 -> 364 | F26: =SUM(F10:F25) -> 11.17 | G26: =SUM(G10:G25) -> 14.38 | H26: =SUM(H10:H25) -> 49.56 | I26: =SUM(I10:I25) -> 375.91 | J26: =SUM(J10:J25) -> 1.91
B27: 2 - ой ЗАВТРАК
A28: Кисломолочный напиток | C28: 150 | F28: 4.35 | G28: 3.75 | H28: 6.30 | I28: 76.00 | J28: 0.45 | K28: №420 Сб дошк 2016
A29: (катык, кефир, напиток ацидофильный, ряженка) | B29: кисломолочный напиток | D29: 155.00 | E29: 150.00
A30: Итого: | C30: 150 | F30: =SUM(F27:F29) -> 4.35 | G30: =SUM(G27:G29) -> 3.75 | H30: 6.30 | I30: 76.00 | J30: 0.45
B31: ОБЕД
A32: Салат из кукурузы к/с | C32: 30 | F32: 0.86 | G32: 1.85 | H32: 2.41 | I32: 29.79 | J32: 2.79 | K32: №10, сб дошк 2016
B33: кукуруза к/с | D33: 46.60 | E33: 27.90
B34: сахар | D34: 0.60 | E34: 0.60
B35: масло растительное | D35: 1.80 | E35: 1.80
A36: Суп картофельный с клецками на курином бульоне, с мясом птицы | C36: 150/10 | F36: 4.92 | G36: 4.72 | H36: 11.30 | I36: 115.56 | J36: 3.69 | K36: №91сб дошк 2016
B37: цыплята-бройлеры потр с/м | D37: 24.30 | E37: 23.00
B38: масса отварной мякоти птицы | E38: 10.00
B39: картофель | D39: 66.60 | E39: 50.00
B40: морковь | D40: 7.50 | E40: 6.00
B41: лук репчатый | D41: 7.20 | E41: 6.00
B42: масло растительное | D42: 1.50 | E42: 1.50
B43: соль иодированная | D43: 0.50 | E43: 0.50
B44: бульон | D44: 112.50 | E44: 112.50
B45: клецки: | E45: 15.00
B46: мука пшеничная | D46: 4.60 | E46: 4.60
B47: масло сливочное | D47: 0.50 | E47: 0.50
B48: яйцо | D48: 1.60 | E48: 1.32
B49: вода | D49: 7.30 | E49: 7.30
B50: соль йодированная | D50: 0.10 | E50: 0.10
B51: масса теста | E51: 13.50
B52: масса готовых клецек | E52: 15.00
A53: Пудинг рыбный | C53: 45/15 | F53: 8.98 | G53: 2.93 | H53: 4.40 | I53: 80.00 | J53: 0.32 | K53: №286 СБ дошк 2016
B54: рыба (минтай с/м БГ) | D54: 51.54 | E54: 37.90
B55: масса отварной рыбы | E55: 30.00
B56: хлеб пшеничный | D56: 6.20 | E56: 6.20
B57: яйцо | D57: 4.80 | E57: 4.00
B58: молоко | D58: 9.00 | E58: 9.00
B59: масло сливочное | D59: 1.70 | E59: 1.70
B60: соль иодированная | D60: 0.30 | E60: 0.30
B61: масло растительное | D61: 0.80 | E61: 0.80
B62: масса пудинга | E62: 45.00
B63: соус молочный
B64: молоко | D64: 7.50 | E64: 7.50
B65: масло сливочное | D65: 0.80 | E65: 0.80
B66: мука пшеничная | D66: 0.80 | E66: 0.80
B67: вода | D67: 7.50 | E67: 7.50
B68: сахар | D68: 0.15 | E68: 0.15
B69: соль иодированная | D69: 0.09 | E69: 0.09
B70: масса соуса | E70: 15.00
A71: Пюре картофельное | C71: 120 | F71: 2.45 | G71: 3.84 | H71: 16.35 | I71: 109.80 | J71: 14.53 | K71: №339 СБ дошк 2016
B72: картофель | D72: 136.80 | E72: 102.60
B73: молоко | D73: 18.96 | E73: 18.00
B74: масло сливочное | D74: 4.20 | E74: 4.20
B75: соль иодированная | D75: 0.45 | E75: 0.45
A76: Напиток из сухофруктов | C76: 150 | F76: 0.50 | G76: 0.07 | H76: 14.00 | I76: 60 | J76: 0.54 | K76: №394 Сб дошк 2016
B77: сухофрукты | D77: 12.75 | E77: 12.50
B78: сахар | D78: 5.00 | E78: 5.00
B79: вода | D79: 152.00 | E79: 152.00
A80: Хлеб пшеничный | C80: 20 | D80: 20.00 | E80: 20.00 | F80: 1.52 | G80: 0.16 | H80: 9.85 | I80: 47.05 | J80: 0.00 | K80: табл 6 стр 134, Дели +, 2012
A81: Хлеб ржаной | C81: 30 | D81: 30.00 | E81: 30.00 | F81: 1.98 | G81: 0.36 | H81: 11.87 | I81: 59.34 | J81: 0 | K81: табл 6 стр 144, Дели +, 2012
A82: Итого: | C82: =C32+160+60+C71+C76+C80+C81 -> 570 | F82: =SUM(F31:F81) -> 21.21 | G82: =SUM(G31:G81) -> 13.93 | H82: 70.18 | I82: 501.54 | J82: 21.87
B83: ПОЛДНИК
A84: Вак балиш с рисом и мясом | C84: 75 | F84: 5.85 | G84: 8.63 | H84: 23.85 | I84: 195.53 | K84: Согласно сборника рецептур блюд и кулинарных изделий татарской кухни
B85: мука пшеничная в/с | D85: 24.80 | E85: 24.80
B86: мука пшеничная в/с | D86: 0.80 | E86: 0.80
B87: яйцо куриное | D87: 2.52 | E87: 2.10
B88: масло сливочное | D88: 2.10 | E88: 2.10
B89: сахарный песок | D89: 0.80 | E89: 0.80
B90: молоко | D90: 10.00 | E90: 10.00
B91: дрожжи сухие | D91: 0.24 | E91: 0.24
B92: соль йодированная | D92: 0.32 | E92: 0.32
B93: масса теста | E93: 40.00
B94: говядина (котлетное мясо б/к) | D94: 23.50 | E94: 22.50
B95: или фарш говяжий | D95: 23.50 | E95: 22.50
B96: крупа рисовая | D96: 4.80 | E96: 4.80
B97: масса сваренного риса до полуготовности | E97: 12.00
B98: лук репчатый | D98: 6.24 | E98: 5.20
B99: масло сливочное | D99: 6.00 | E99: 6.00
B100: соль йодированная | D100: 0.40 | E100: 0.40
B101: выход фарша | E101: 40.00
B102: яйцо куриное | D102: 0.96 | E102: 0.80
B103: масло сливочное | D103: 0.80 | E103: 0.80
B104: масло растительное | D104: 0.20 | E104: 0.20
A105: Чай с сахаром | C105: 150/5 | F105: 0.06 | G105: 0.02 | H105: 5.01 | I105: 19.95 | J105: 0.03 | K105: №410, 411 Дели 2016
B106: чай весовой | D106: 0.40 | E106: 0.40
B107: сахар | D107: 5.00 | E107: 5.00
B108: вода | D108: 150.00 | E108: 150.00
A109: Фрукты свежие | C109: 100 | D109: 100.00 | E109: 100.00 | F109: 0.40 | G109: 0.40 | H109: 9.80 | I109: 47.00 | J109: 10.00 | K109: №386 СБ
A110: (яблоки,или апельсин, или банан,или мандарин ) | K110: дошк. 2016
A111: Итого: | C111: =75+155+C109 -> 330 | F111: =SUM(F83:F110) -> 6.31 | G111: =SUM(G83:G110) -> 9.05 | H111: 38.66 | I111: 262.48 | J111: 10.03
A112: ВСЕГО: | C112: =C26+C30+C82+C111 -> 1414 | F112: =F26+F30+F82+F111 -> 43.04 | G112: =G26+G30+G82+G111 -> 41.11 | H112: =H26+H30+H82+H111 -> 164.70 | I112: =I26+I30+I82+I111 -> 1215.93 | J112: =J26+J30+J82+J111 -> 34.26
A114: День 2- ой
A115: Наименование блюд и продуктов | B115: Ингридиенты | C115: Масса порции | D115: Кол - во (в г ) | E115: Кол - во (в г ) | F115: Пищевые вещества | I115: Энергетическая ценность | J115: Витамин | K115: Сборник рецептур
D116: брутто | E116: нетто | F116: белки | G116: жиры | H116: угл-ды | I116: Ккал | J116: С
B117: ЗАВТРАК
A118: Каша пшенная молочная с маслом сливочным | C118: 140/3 | F118: 3.83 | G118: 2.34 | H118: 19.46 | I118: 117.34 | J118: 0.00 | K118: ТТК №6Д
B119: крупа пшено | D119: 17.70 | E119: 17.70
B120: молоко | D120: 70.00 | E120: 70.00
B121: вода | D121: 53.00 | E121: 53.00
B122: сахар | D122: 2.00 | E122: 2.00
B123: соль иодированная | D123: 0.40 | E123: 0.40
B124: масло сливочное | D124: 3.00 | E124: 3.00
A125: Какао с молоком | C125: 180/6 | F125: 3.67 | G125: 3.19 | H125: 10.87 | I125: 90.78 | J125: 1.43 | K125: №416 Дели 2016
B126: какао-порошок | D126: 2.00 | E126: 2.00
B127: сахар | D127: 6.00 | E127: 6.00
B128: молоко | D128: 110.00 | E128: 110.00
B129: вода | D129: 80.00 | E129: 80.00
A130: Бутерброд с маслом сливочным | C130: 25/5 | F130: 1.92 | G130: 4.36 | H130: 12.92 | I130: 98.50 | K130: №1 Дели 2016
B131: батон нарезной | D131: 25.00 | E131: 25.00
B132: масло сливочное | D132: 5.00 | E132: 5.00
A133: Итого: | C133: =143+186+30 -> 359 | F133: =SUM(F118:F132) -> 9.42 | G133: =SUM(G118:G132) -> 9.88 | H133: =SUM(H118:H132) -> 43.25 | I133: =SUM(I118:I132) -> 306.62 | J133: =SUM(J118:J132) -> 1.43
B134: 2 - ой ЗАВТРАК
A135: Сок в инд.упаковке | C135: 125 | D135: 125 | E135: 125 | F135: 0.63 | G135: 0.00 | H135: 12.63 | I135: 53.00 | J135: 2.50 | K135: №418 Дели 2016
A136: Итого: | C136: 125 | F136: =SUM(F135) -> 0.63 | G136: =SUM(G135) -> 0.00 | H136: =SUM(H135) -> 12.63 | I136: =SUM(I135) -> 53.00 | J136: =SUM(J135) -> 2.50
B137: ОБЕД
A138: Салат из моркови с сахаром | C138: 40 | F138: 0.50 | G138: 0.04 | H138: 4.65 | I138: 20.92 | J138: 1.92 | K138: №42, Сб дошк 2016
B139: морковь | D139: 48.00 | E139: 38.40
B140: сахар | D140: 2.00 | E140: 2.00
A141: Борщ со свежей капустой, с картофелем на мясном бульоне, со сметаной | C141: 150/5 | F141: 1.81 | G141: 3.70 | H141: 6.74 | I141: 70.31 | J141: 6.43 | K141: №63, сб дошк 2016
B142: капуста свежая | D142: 15.00 | E142: 12.00
B143: картофель | D143: 15.96 | E143: 12.00
B144: морковь | D144: 9.38 | E144: 7.50
B145: лук репчатый | D145: 7.14 | E145: 6.00
B146: свекла | D146: 30.72 | E146: 24.00
B147: сахар | D147: 3.00 | E147: 3.00
B148: томат-паста | D148: 0.15 | E148: 0.15
B149: масло растительное | D149: 1.50 | E149: 1.50
B150: соль иодированная | D150: 0.50 | E150: 0.50
B151: бульон | D151: 120.00 | E151: 120.00
B152: сметана | D152: 5.00 | E152: 5.00
A153: Гуляш из отварной говядины | C153: 30/30 | F153: 8.73 | G153: 10.07 | H153: 1.73 | I153: 132.60 | J153: 0.56 | K153: №293 сб рецептур 2017
B154: говядина лопатка б/к | D154: 48.00 | E154: 48.00
B155: соль йодированная | D155: 0.30 | E155: 0.30
B156: масса отварной говядины | E156: 30.00
B157: морковь | D157: 13.13 | E157: 10.50
B158: лук репчатый | D158: 6.36 | E158: 5.30
B159: вода питьевая | D159: 22.50 | E159: 22.50
B160: томатная паста | D160: 0.90 | E160: 0.90
B161: мука пшеничная в/с | D161: 1.50 | E161: 1.50
B162: масло растительное | D162: 2.00 | E162: 2.00
B163: соль йодированная | D163: 0.15 | E163: 0.15
A164: Каша гречневая рассыпчатая с маслом сливочным | C164: 110/2 | F164: 6.45 | G164: 3.13 | H164: 29.16 | I164: 170.14 | J164: 0.00 | K164: №179 сб дошк 2016
B165: гречневая крупа | D165: 52.40 | E165: 52.40
B166: вода питьевая | D166: 78.10 | E166: 78.10
B167: соль йодированная | D167: 0.30 | E167: 0.30
B168: масло сливочное | D168: 2.00 | E168: 2.00
A169: Компот из свежих яблок | C169: 150 | F169: 0.12 | G169: 0.12 | H169: 20.91 | I169: 85.95 | J169: 2.85 | K169: №342 сб шк 2017
B170: яблоки свежие | D170: 28.50 | E170: 25.00
B171: сахар | D171: 5.00 | E171: 5.00
B172: вода | D172: 152.00 | E172: 152.00
A174: Хлеб ржаной | C174: 30 | D174: 30.00 | E174: 30.00 | F174: 1.98 | G174: 0.36 | H174: 11.87 | I174: 59.34 | J174: 0 | K174: табл 6 стр 144, Дели +, 2012
A175: Итого: | C175: =C138+155+60+112+C169+C174 -> 547 | F175: =SUM(F138:F174) -> 19.59 | G175: =SUM(G138:G174) -> 17.42 | H175: 75.05 | I175: 539.26 | J175: 11.76
B176: ПОЛДНИК
A177: Омлет натуральный | C177: 130 | F177: 12.08 | G177: 21.52 | H177: 2.29 | I177: 251.03 | J177: 0.25 | K177: №229, сб дошк 2016
B178: яйцо | D178: 96.00 | E178: 80.00
B179: молоко | D179: 55.00 | E179: 55.00
B180: масса омлетной смеси | E180: 135.00
B181: масло сливочное | D181: 2.00 | E181: 2.00
B182: соль иодированная | D182: 0.30 | E182: 0.30
B183: масса готового омлета | E183: 130.00
A184: Хлеб пшеничный | C184: 20 | D184: 20.00 | E184: 20.00 | F184: 1.52 | G184: 0.16 | H184: 9.85 | I184: 47.05 | J184: 0.00 | K184: табл 6 стр 134, Дели +, 2012
A185: Чай с сахаром и лимоном | C185: 150/5/5 | F185: 0.10 | G185: 0.02 | H185: 5.18 | I185: 21.78 | J185: 2.24 | K185: №412 Дели 2016
B186: чай весовой | D186: 0.40 | E186: 0.40
B187: сахар | D187: 5.00 | E187: 5.00
B188: лимон | D188: 5.55 | E188: 5.00
B189: вода | D189: 150.00 | E189: 150.00
A190: Фрукты свежие | C190: 100 | D190: 100.00 | E190: 100.00 | F190: 1.50 | G190: 0.50 | H190: 21.00 | I190: 96.00 | J190: 10.00 | K190: табл 9 стр 186, Дели +, 2012
A191: (яблоки,или апельсин, или банан,или мандарин)
A192: Итого: | C192: =C177+C184+160+C190 -> 410 | F192: =SUM(F176:F191) -> 15.20 | G192: =SUM(G176:G191) -> 22.20 | H192: 38.32 | I192: 415.86 | J192: 12.49
A193: ВСЕГО: | C193: =C133+C136+C175+C192 -> 1441 | F193: =F133+F136+F175+F192 -> 44.83 | G193: =G133+G136+G175+G192 -> 49.50 | H193: =H133+H136+H175+H192 -> 169.24 | I193: =I133+I136+I175+I192 -> 1314.74 | J193: =J133+J136+J175+J192 -> 28.18
A195: День 3 - ий
A196: Наименование блюд и продуктов | B196: Ингридиенты | C196: Масса порции | D196: Кол - во (в г ) | E196: Кол - во (в г ) | F196: Пищевые вещества | I196: Энергетическая ценность | J196: Витамин | K196: Сборник рецептур
D197: брутто | E197: нетто | F197: белки | G197: жиры | H197: угл-ды | I197: Ккал | J197: С
B198: ЗАВТРАК
A199: Каша манная молочная с маслом сливочным | C199: 140/3 | F199: 4.24 | G199: 4.60 | H199: 22.61 | I199: 149.26 | J199: 0.82 | K199: ТТК №4Д
B200: крупа манная | D200: 18.00 | E200: 18.00
B201: молоко | D201: 123.00 | E201: 123.00
B202: сахар | D202: 2.00 | E202: 2.00
B203: соль иодированная | D203: 0.40 | E203: 0.40
... 742 more rows

Sheet от 3х до 7 лет
A1: Утверждаю | H1: Согласовано
A2: Директор ООО "ФУДСОЦСЕРВИС" | H2: Руководитель дошкольной образовательной
A3: Харламова Э.Р. | H3: организации
C4: Примерное 10-дневное меню
C5: для организации питания детей в дошкольных учреждениях
C6: с 8-10,5 - часовым пребыванием от 3 до 7 лет
A7: День 1 - ый
A8: Наименование блюд и продуктов | B8: Ингридиенты | C8: Масса порции | D8: Кол - во (в г ) | E8: Кол - во (в г ) | F8: Пищевые вещества | I8: Энергетическая ценность | J8: Витамин | K8: Сборник рецептур
D9: брутто | E9: нетто | F9: белки | G9: жиры | H9: угл-ды | I9: Ккал | J9: С
B10: ЗАВТРАК
A11: Каша геркулесовая молочная с маслом сливочным | C11: 180/3 | F11: 7.44 | G11: 8.07 | H11: 33.80 | I11: 238.71 | J11: 0.86 | K11: ТТК №5Д
B12: крупа геркулесовая | D12: 22.50 | E12: 22.50
B13: молоко | D13: 158.00 | E13: 158.00
B14: сахар | D14: 2.50 | E14: 2.50
B15: соль йодированная | D15: 0.50 | E15: 0.50
B16: масло сливочное | D16: 3.00 | E16: 3.00
A17: Кофейный напиток с молоком | C17: 180/6 | F17: 2.85 | G17: 2.41 | H17: 10.35 | I17: 74.58 | J17: 1.17 | K17: №414 Дели 2016
B18: кофейный напиток | D18: 2.50 | E18: 2.50
B19: сахар | D19: 6.00 | E19: 6.00
B20: молоко | D20: 90.00 | E20: 90.00
B21: вода | D21: 108.00 | E21: 108.00
A22: Бутерброд с сыром, маслом сливочным | C22: 30/5/5 | F22: 3.61 | G22: 5.83 | H22: 15.49 | I22: 128.77 | J22: 0.07 | K22: №3 сб дошк 2016
B23: батон нарезной | D23: 30.00 | E23: 30.00
B24: сыр | D24: 5.10 | E24: 5.00
B25: масло сливочное | D25: 5.00 | E25: 5.00
A26: Итого: | C26: =183+186+40 -> 409 | F26: =F11+F17+F22 -> 13.90 | G26: =G11+G17+G22 -> 16.31 | H26: =H11+H17+H22 -> 59.64 | I26: =I11+I17+I22 -> 442.06 | J26: =J11+J17+J22 -> 2.10
B27: 2 - ой ЗАВТРАК
A28: Кисломолочный напиток | C28: 180 | F28: 5.22 | G28: 4.50 | H28: 7.56 | I28: 92.00 | J28: 0.54 | K28: №420 СБ дошк 2016
A29: (катык, кефир, напиток ацидофильный, ряженка) | B29: кисломолочный напиток | D29: 185.00 | E29: 180.00
A30: Итого: | C30: 180 | F30: =SUM(F28:F29) -> 5.22 | G30: =SUM(G28:G29) -> 4.50 | H30: =SUM(H28:H29) -> 7.56 | I30: =SUM(I28:I29) -> 92.00 | J30: =SUM(J28:J29) -> 0.54
B31: ОБЕД
A32: Икра кабачковая | C32: 50 | F32: 0.45 | G32: 2.35 | H32: 2.97 | I32: 34.80 | K32: №54 дошк. Сб 2016
B33: икра кабачковая | D33: 51.00 | E33: 50.00
A34: Суп картофельный с клецками на курином бульоне, с мясом птицы | C34: 180/10 | F34: 5.44 | G34: 5.30 | H34: 13.53 | I34: 133.43 | J34: 4.38 | K34: №91сб дошк 2016
B35: цыплята-бройлеры потр с/м | D35: 24.30 | E35: 23.00
B36: масса отварной мякоти птицы | E36: 10.00
B37: картофель | D37: 79.80 | E37: 60.00
B38: морковь | D38: 9.00 | E38: 7.20
B39: лук репчатый | D39: 8.60 | E39: 7.20
B40: масло растительное | D40: 1.80 | E40: 1.80
B41: соль иодированная | D41: 0.60 | E41: 0.60
B42: бульон | D42: 135.00 | E42: 135.00
B43: клецки: | E43: 18.00
B44: мука пшеничная | D44: 5.50 | E44: 5.50
B45: масло сливочное | D45: 0.60 | E45: 0.60
B46: яйцо | D46: 1.92 | E46: 1.60
B47: вода | D47: 8.80 | E47: 8.80
B48: соль йодированная | D48: 0.16 | E48: 0.16
B49: масса теста | E49: 16.20
B50: масса готовых клецек | E50: 18.00
A51: Пудинг рыбный | C51: 60/20 | F51: 11.97 | G51: 3.91 | H51: 5.87 | I51: 106.67 | J51: 0.46 | K51: №286 СБ дошк 2016
B52: рыба (минтай с/м БГ) | D52: 68.34 | E52: 50.25
B53: масса отварной рыбы | E53: 39.75
B54: хлеб пшеничный | D54: 8.25 | E54: 8.25
B55: яйцо | D55: 6.30 | E55: 5.25
B56: молоко | D56: 12.00 | E56: 12.00
B57: масло сливочное | D57: 2.25 | E57: 2.25
B58: соль иодированная | D58: 0.40 | E58: 0.40
B59: масло растительное | D59: 1.00 | E59: 1.00
B60: масса пудинга | E60: 60.00
B61: соус молочный
B62: молоко | D62: 10.00 | E62: 10.00
B63: масло сливочное | D63: 1.10 | E63: 1.10
B64: мука пшеничная | D64: 1.10 | E64: 1.10
B65: вода | D65: 10.00 | E65: 10.00
B66: сахар | D66: 0.20 | E66: 0.20
B67: соль иодированная | D67: 0.13 | E67: 0.13
B68: масса соуса | E68: 20.00
A69: Пюре картофельное | C69: 140 | F69: 2.86 | G69: 4.48 | H69: 19.08 | I69: 128.10 | J69: 16.96 | K69: №339 СБ дошк 2016
B70: картофель | D70: 159.60 | E70: 119.70
B71: молоко | D71: 22.12 | E71: 21.00
B72: масло сливочное | D72: 5.00 | E72: 5.00
B73: соль иодированная | D73: 0.52 | E73: 0.52
A74: Напиток из сухофруктов | C74: 180 | F74: 0.60 | G74: 0.08 | H74: 16.81 | I74: 72 | J74: 0.65 | K74: №394 Сб дошк 2016
B75: сухофрукты | D75: 15.30 | E75: 15.00
B76: сахар | D76: 6.00 | E76: 6.00
B77: вода | D77: 183.00 | E77: 183.00
A78: Хлеб пшеничный | C78: 30 | D78: 30.00 | E78: 30.00 | F78: 2.28 | G78: 0.24 | H78: 14.76 | I78: 70.50 | J78: 0.00 | K78: табл 6 стр 134, Дели +, 2012
A79: Хлеб ржаной | C79: 35 | D79: 35.00 | E79: 35.00 | F79: 2.31 | G79: 0.42 | H79: 13.87 | I79: 69.37 | J79: 0.00 | K79: табл 6 стр 144, Дели +, 2012
A80: Итого: | C80: =C32+190+80+C69+C74+C78+C79 -> 705 | F80: =SUM(F31:F79) -> 25.91 | G80: =SUM(G31:G79) -> 16.78 | H80: =SUM(H31:H79) -> 86.89 | I80: =SUM(I31:I79) -> 614.39 | J80: =SUM(J31:J79) -> 22.45
B81: ПОЛДНИК
A82: Вак балиш с рисом и мясом | C82: 90 | F82: 7.02 | G82: 10.35 | H82: 28.62 | I82: 234.63 | K82: Согласно сборника рецептур блюд и кулинарных изделий татарской кухни,1997
B83: мука пшеничная в/с | D83: 31.00 | E83: 31.00
B84: мука пшеничная в/с | D84: 1.00 | E84: 1.00
B85: яйцо куриное | D85: 3.10 | E85: 2.60
B86: масло сливочное | D86: 2.60 | E86: 2.60
B87: сахарный песок | D87: 1.00 | E87: 1.00
B88: молоко | D88: 12.50 | E88: 12.50
B89: дрожжи сухие | D89: 0.30 | E89: 0.30
B90: соль йодированная | D90: 0.40 | E90: 0.40
B91: масса теста | E91: 50.00
B92: говядина (котлетное мясо б/к) | D92: 23.50 | E92: 22.50
B93: или фарш говяжий | D93: 23.50 | E93: 22.50
B94: крупа рисовая | D94: 6.00 | E94: 6.00
B95: масса сваренного риса до полуготовности | E95: 15.00
B96: лук репчатый | D96: 7.80 | E96: 6.50
B97: масло сливочное | D97: 7.50 | E97: 7.50
B98: соль йодированная | D98: 0.50 | E98: 0.50
B99: выход фарша | E99: 50.00
B100: яйцо куриное | D100: 1.20 | E100: 1.00
B101: масло сливочное | D101: 1.00 | E101: 1.00
B102: масло растительное | D102: 0.25 | E102: 0.25
A103: Чай с сахаром | C103: 180/6 | F103: 0.06 | G103: 0.02 | H103: 6.01 | I103: 23.94 | J103: 0.03 | K103: №410, 411 Дели 2016
B104: чай весовой | D104: 0.45 | E104: 0.45
B105: сахар | D105: 6.00 | E105: 6.00
B106: вода | D106: 180.00 | E106: 180.00
A107: Фрукты свежие | C107: 100 | D107: 100.00 | E107: 100.00 | F107: 0.40 | G107: 0.40 | H107: 9.80 | I107: 47.00 | J107: 10.00 | K107: №386 СБ
A108: (яблоки,или апельсин, или банан,или мандарин ) | K108: дошк. 2016
A109: Итого: | C109: =C82+C107+186 -> 376 | F109: =SUM(F81:F108) -> 7.48 | G109: =SUM(G81:G108) -> 10.77 | H109: =SUM(H81:H108) -> 44.43 | I109: =SUM(I81:I108) -> 305.57 | J109: =SUM(J81:J108) -> 10.03
A110: ВСЕГО: | C110: =C26+C30+C80+C109 -> 1670 | F110: =F26+F30+F80+F109 -> 52.51 | G110: =G26+G30+G80+G109 -> 48.37 | H110: =H26+H30+H80+H109 -> 198.53 | I110: =I26+I30+I80+I109 -> 1454.01 | J110: =J26+J30+J80+J109 -> 35.12
A112: День 2- ой
A113: Наименование блюд и продуктов | B113: Ингридиенты | C113: Масса порции | D113: Кол - во (в г ) | E113: Кол - во (в г ) | F113: Пищевые вещества | I113: Энергетическая ценность | J113: Витамин | K113: Сборник рецептур
D114: брутто | E114: нетто | F114: белки | G114: жиры | H114: угл-ды | I114: Ккал | J114: С
B115: ЗАВТРАК
A116: Каша пшенная молочная с маслом сливочным | C116: 180/3 | F116: 5.17 | G116: 5.33 | H116: 24.92 | I116: 184.24 | K116: ТТК № 6Д
B117: крупа пшено | D117: 22.50 | E117: 22.50
B118: молоко | D118: 90.00 | E118: 90.00
B119: вода | D119: 68.00 | E119: 68.00
B120: сахар | D120: 2.50 | E120: 2.50
B121: соль иодированная | D121: 0.50 | E121: 0.50
B122: масло сливочное | D122: 3.00 | E122: 3.00
A123: Какао с молоком | C123: 180/6 | F123: 3.67 | G123: 3.19 | H123: 10.87 | I123: 90.78 | J123: 1.43 | K123: №416 Дели 2016
B124: какао-порошок | D124: 2.00 | E124: 2.00
B125: сахар | D125: 6.00 | E125: 6.00
B126: молоко | D126: 110.00 | E126: 110.00
B127: вода | D127: 80.00 | E127: 80.00
A128: Бутерброд с маслом сливочным | C128: 30/5 | F128: 2.29 | G128: 4.50 | H128: 15.49 | I128: 111.68 | K128: №1 Дели 2010
B129: батон нарезной | D129: 30.00 | E129: 30.00
B130: масло сливочное | D130: 5.00 | E130: 5.00
A131: Итого: | C131: =183+186+35 -> 404 | F131: =SUM(F116:F130) -> 11.13 | G131: =SUM(G116:G130) -> 13.02 | H131: =SUM(H116:H130) -> 51.28 | I131: =SUM(I116:I130) -> 386.70 | J131: =SUM(J116:J130) -> 1.43
B132: 2 - ой ЗАВТРАК
A133: Сок в инд.упаковке | C133: 125 | D133: 125 | E133: 125 | F133: 0.63 | G133: 0.00 | H133: 12.63 | I133: 53.00 | J133: 2.50 | K133: №418 Дели 2016
A134: Итого: | C134: 125 | F134: =SUM(F133) -> 0.63 | G134: =SUM(G133) -> 0.00 | H134: =SUM(H133) -> 12.63 | I134: =SUM(I133) -> 53.00 | J134: =SUM(J133) -> 2.50
B135: ОБЕД
A136: Салат из моркови с сахаром | C136: 60 | F136: 0.75 | G136: 0.06 | H136: 6.97 | I136: 31.38 | J136: 2.88 | K136: №42, сб шк 2017
B137: морковь | D137: 72.00 | E137: 57.60
B138: сахар | D138: 3.00 | E138: 3.00
A139: Борщ со свежей капустой, с картофелем на мясном бульоне, со сметаной | C139: 180/7 | F139: 1.48 | G139: 4.59 | H139: 8.12 | I139: 85.97 | J139: 7.71 | K139: №63 сб дошк 2016
B140: капуста свежая | D140: 20.00 | E140: 16.00
B141: картофель | D141: 21.28 | E141: 16.00
B142: морковь | D142: 12.50 | E142: 10.00
B143: лук репчатый | D143: 9.52 | E143: 8.00
B144: свекла | D144: 41.00 | E144: 32.00
B145: сахар | D145: 0.20 | E145: 0.20
B146: томат-паста | D146: 2.00 | E146: 2.00
B147: масло растительное | D147: 4.00 | E147: 4.00
B148: соль иодированная | D148: 0.70 | E148: 0.70
B149: бульон | D149: 140.00 | E149: 140.00
B150: сметана | D150: 7.00 | E150: 7.00
A151: Гуляш из отварной говядины | C151: 40/40 | F151: 11.64 | G151: 13.43 | H151: 2.31 | I151: 176.80 | J151: 0.74 | K151: №260 сб рецептур 2017
B152: говядина лопатка б/к | D152: 64.00 | E152: 64.00
B153: соль йодированная | D153: 0.40 | E153: 0.40
B154: масса отварной говядины | E154: 40.00
B155: морковь | D155: 17.50 | E155: 14.00
B156: лук репчатый | D156: 8.50 | E156: 7.10
B157: вода питьевая | D157: 30.00 | E157: 30.00
B158: томатная паста | D158: 1.20 | E158: 1.20
B159: мука пшеничная в/с | D159: 2.00 | E159: 2.00
B160: масло растительное | D160: 2.70 | E160: 2.70
B161: соль йодированная | D161: 0.20 | E161: 0.20
A162: Каша гречневая рассыпчатая с маслом сливочным | C162: 130/3 | F162: 7.62 | G162: 4.16 | H162: 34.47 | I162: 205.27 | J162: 0.00 | K162: №179 сб дошк 2016
B163: гречневая крупа | D163: 61.90 | E163: 61.90
B164: вода питьевая | D164: 92.30 | E164: 92.30
B165: соль йодированная | D165: 0.40 | E165: 0.40
B166: масло сливочное | D166: 3.00 | E166: 3.00
A167: Компот из свежих яблок | C167: 180 | F167: 0.14 | G167: 0.14 | H167: 25.09 | I167: 103.14 | J167: 0.81 | K167: №342 сб шк 2017
B168: яблоки свежие | D168: 34.00 | E168: 30.00
B169: сахар | D169: 6.00 | E169: 6.00
B170: вода | D170: 183.00 | E170: 183.00
A171: Хлеб ржаной | C171: 40 | D171: 40.00 | E171: 40.00 | F171: 2.64 | G171: 0.48 | H171: 15.86 | I171: 79.28 | J171: 0.00 | K171: табл 6 стр 144, Дели +, 2012
A172: Итого: | C172: =C136+187+80+133+C167+C171 -> 680 | F172: =SUM(F136:F171) -> 24.28 | G172: =SUM(G136:G171) -> 22.86 | H172: =SUM(H136:H171) -> 92.81 | I172: =SUM(I136:I171) -> 681.83 | J172: =SUM(J136:J171) -> 12.14
B173: ПОЛДНИК
A174: Омлет натуральный | C174: 150 | F174: 13.94 | G174: 24.83 | H174: 2.64 | I174: 289.66 | J174: 0.28 | K174: №229, сб дошк 2016
B175: яйцо | D175: 114.00 | E175: 95.00
B176: молоко | D176: 60.00 | E176: 60.00
B177: масса омлетной смеси | E177: 155.00
B178: масло сливочное | D178: 2.50 | E178: 2.50
B179: соль иодированная | D179: 0.40 | E179: 0.40
B180: масса готового омлета | E180: 150.00
A181: Хлеб пшеничный | C181: 30 | D181: 30.00 | E181: 30.00 | F181: 2.28 | G181: 0.24 | H181: 14.76 | I181: 70.50 | J181: 0.00 | K181: табл 6 стр 134, Дели +, 2012
A182: Чай с сахаром и лимоном | C182: 180/6/7 | F182: 0.13 | G182: 0.03 | H182: 6.23 | I182: 26.48 | J182: 2.83 | K182: №412 Дели 2016
B183: чай весовой | D183: 0.45 | E183: 0.45
B184: сахар | D184: 6.00 | E184: 6.00
B185: лимон | D185: 8.00 | E185: 7.00
B186: вода | D186: 180.00 | E186: 180.00
A187: Фрукты свежие | C187: 100 | D187: 100.00 | E187: 100.00 | F187: 1.50 | G187: 0.50 | H187: 21.00 | I187: 96.00 | J187: 10.00 | K187: табл 9 стр 186, Дели +, 2012
A188: (яблоки,или апельсин, или банан,или мандарин)
A189: Итого: | C189: =C174+C181+193+C187 -> 473 | F189: =SUM(F173:F188) -> 17.85 | G189: =SUM(G173:G188) -> 25.60 | H189: =SUM(H173:H188) -> 44.63 | I189: =SUM(I173:I188) -> 482.64 | J189: =SUM(J173:J188) -> 13.11
A190: ВСЕГО: | C190: =C131+C134+C172+C189 -> 1682 | F190: =F131+F134+F172+F189 -> 53.88 | G190: =G131+G134+G172+G189 -> 61.48 | H190: =H131+H134+H172+H189 -> 201.34 | I190: =I131+I134+I172+I189 -> 1604.17 | J190: =J131+J134+J172+J189 -> 29.18
A192: День 3 - ий
A193: Наименование блюд и продуктов | B193: Ингридиенты | C193: Масса порции | D193: Кол - во (в г ) | E193: Кол - во (в г ) | F193: Пищевые вещества | I193: Энергетическая ценность | J193: Витамин | K193: Сборник рецептур
D194: брутто | E194: нетто | F194: белки | G194: жиры | H194: угл-ды | I194: Ккал | J194: С
B195: ЗАВТРАК
A196: Каша манная молочная с маслом сливочным | C196: 180/3 | F196: 5.45 | G196: 5.30 | H196: 29.08 | I196: 186.30 | J196: 1.05 | K196: ТТК №4Д
B197: крупа манная | D197: 22.50 | E197: 22.50
B198: молоко | D198: 158.00 | E198: 158.00
B199: сахар | D199: 2.50 | E199: 2.50
B200: соль иодированная | D200: 0.50 | E200: 0.50
B201: масло сливочное | D201: 3.00 | E201: 3.00
A202: Чай с молоком, сахаром | C202: 180/6 | F202: 3.03 | G202: 2.40 | H202: 10.48 | I202: 75.76 | J202: 1.38 | K202: №413 сб дошк 2016
... 739 more rows
